[Event "December 5 Early 2023"]
[Site "https://www.chess.com"]
[Date "2023.12.05"]
[Round "7"]
[White "Le, Tuan Minh"]
[Black "Firouzja, Alireza"]
[Result "1/2-1/2"]
[Board "1"]
[TimeControl "180+1"]
[WhiteFideId "12401153"]
[BlackFideId "12573981"]
[WhiteElo "3072"]
[BlackElo "3183"]
[WhiteTeam "VIE"]
[BlackTeam "FRA"]
[WhiteClock "0:00:07"]
[BlackClock "0:00:02"]

1. d4 {[%clk 0:03:00]}  Nf6 {[%clk 0:03:00]} 2. c4 {[%clk 0:02:59]}  e6 {[%clk 0:02:58]} 3. Nc3 {[%clk 0:02:59]}  Bb4 {[%clk 0:02:57]} 4. e3 {[%clk 0:02:59]}  O-O {[%clk 0:02:57]} 5. Bd2 {[%clk 0:03:00]}  c5 {[%clk 0:02:54]} 6. a3 {[%clk 0:02:58]}  Bxc3 {[%clk 0:02:55]} 7. Bxc3 {[%clk 0:02:59]}  Ne4 {[%clk 0:02:55]} 8. Ne2 {[%clk 0:02:57]}  b6 {[%clk 0:02:55]} 9. d5 {[%clk 0:02:55]}  Ba6 {[%clk 0:02:53]} 10. b3 {[%clk 0:02:37]}  b5 {[%clk 0:02:53]} 11. Qc2 {[%clk 0:02:12]}  exd5 {[%clk 0:02:46]} 12. cxd5 {[%clk 0:02:12]}  Nxc3 {[%clk 0:02:42]} 13. Nxc3 {[%clk 0:02:09]}  b4 {[%clk 0:02:42]} 14. Bxa6 {[%clk 0:01:56]}  Nxa6 {[%clk 0:02:43]} 15. axb4 {[%clk 0:01:43]}  cxb4 {[%clk 0:01:43]} 16. Ne4 {[%clk 0:01:31]}  Qb6 {[%clk 0:01:43]} 17. Ng5 {[%clk 0:01:12]}  g6 {[%clk 0:01:34]} 18. Qc4 {[%clk 0:01:01]}  Nc5 {[%clk 0:01:24]} 19. O-O {[%clk 0:00:56]}  h6 {[%clk 0:01:18]} 20. Nf3 {[%clk 0:00:49]}  Rac8 {[%clk 0:01:17]} 21. h4 {[%clk 0:00:48]}  Rfe8 {[%clk 0:01:13]} 22. Rfb1 {[%clk 0:00:40]}  Ne4 {[%clk 0:01:07]} 23. Qa6 {[%clk 0:00:24]}  Nc3 {[%clk 0:00:30]} 24. Rb2 {[%clk 0:00:23]}  Nxd5 {[%clk 0:00:30]} 25. Qxb6 {[%clk 0:00:20]}  axb6 {[%clk 0:00:28]} 26. Rd2 {[%clk 0:00:20]}  Nf6 {[%clk 0:00:27]} 27. Rd4 {[%clk 0:00:20]}  Re4 {[%clk 0:00:26]} 28. Rd6 {[%clk 0:00:20]}  Ng4 {[%clk 0:00:20]} 29. Nd4 {[%clk 0:00:18]}  Ne5 {[%clk 0:00:15]} 30. Rxb6 {[%clk 0:00:18]}  Rxh4 {[%clk 0:00:14]} 31. Rxb4 {[%clk 0:00:18]}  d5 {[%clk 0:00:11]} 32. Rb5 {[%clk 0:00:18]}  Rh5 {[%clk 0:00:10]} 33. Rd1 {[%clk 0:00:17]}  Ng4 {[%clk 0:00:10]} 34. b4 {[%clk 0:00:15]}  Rh1+ {[%clk 0:00:10]} 35. Kxh1 {[%clk 0:00:16]}  Nxf2+ {[%clk 0:00:11]} 36. Kh2 {[%clk 0:00:15]}  Nxd1 {[%clk 0:00:12]} 37. Rc5 {[%clk 0:00:14]}  Rb8 {[%clk 0:00:12]} 38. Nc6 {[%clk 0:00:13]}  Rb7 {[%clk 0:00:08]} 39. Rxd5 {[%clk 0:00:11]}  Nxe3 {[%clk 0:00:08]} 40. Rc5 {[%clk 0:00:12]}  Ng4+ {[%clk 0:00:08]} 41. Kg3 {[%clk 0:00:12]}  Nf6 {[%clk 0:00:08]} 42. Kf4 {[%clk 0:00:12]}  Kg7 {[%clk 0:00:06]} 43. Rc4 {[%clk 0:00:09]}  Rb5 {[%clk 0:00:06]} 44. Rc5 {[%clk 0:00:08]}  Rb6 {[%clk 0:00:07]} 45. Rc4 {[%clk 0:00:08]}  Nd7 {[%clk 0:00:06]} 46. Ke4 {[%clk 0:00:07]}  Rb5 {[%clk 0:00:06]} 47. Nd4 {[%clk 0:00:07]}  Rg5 {[%clk 0:00:06]} 48. Rc2 {[%clk 0:00:06]}  Nf6+ {[%clk 0:00:06]} 49. Kd3 {[%clk 0:00:06]}  Nd5 {[%clk 0:00:07]} 50. Rb2 {[%clk 0:00:05]}  Rg3+ {[%clk 0:00:04]} 51. Kc4 {[%clk 0:00:04]}  Ne3+ {[%clk 0:00:03]} 52. Kc5 {[%clk 0:00:05]}  Rg5+ {[%clk 0:00:03]} 53. Kc6 {[%clk 0:00:05]}  Rg4 {[%clk 0:00:03]} 54. Kc5 {[%clk 0:00:04]}  Rg5+ {[%clk 0:00:03]} 55. Kc6 {[%clk 0:00:04]}  Nc4 {[%clk 0:00:02]} 56. Re2 {[%clk 0:00:04]}  Na3 {[%clk 0:00:02]} 57. b5 {[%clk 0:00:04]}  Rg4 {[%clk 0:00:02]} 58. Kc5 {[%clk 0:00:04]}  Rg5+ {[%clk 0:00:02]} 59. Kb4 {[%clk 0:00:05]}  Nxb5 {[%clk 0:00:03]} 60. Nxb5 {[%clk 0:00:05]}  h5 {[%clk 0:00:03]} 61. Nd6 {[%clk 0:00:05]}  Rd5 {[%clk 0:00:03]} 62. Ne4 {[%clk 0:00:05]}  Re5 {[%clk 0:00:03]} 63. Kc4 {[%clk 0:00:05]}  f5 {[%clk 0:00:02]} 64. Nc3 {[%clk 0:00:06]}  Ra5 {[%clk 0:00:02]} 65. Kd4 {[%clk 0:00:05]}  Kf6 {[%clk 0:00:03]} 66. Nd5+ {[%clk 0:00:05]}  Kg5 {[%clk 0:00:03]} 67. Ke5 {[%clk 0:00:05]}  Ra8 {[%clk 0:00:03]} 68. Ke6 {[%clk 0:00:05]}  Ra6+ {[%clk 0:00:03]} 69. Kf7 {[%clk 0:00:05]}  Rd6 {[%clk 0:00:03]} 70. Ne7 {[%clk 0:00:05]}  f4 {[%clk 0:00:03]} 71. Re5+ {[%clk 0:00:04]}  Kg4 {[%clk 0:00:04]} 72. Nxg6 {[%clk 0:00:04]}  f3 {[%clk 0:00:04]} 73. gxf3+ {[%clk 0:00:04]}  Kxf3 {[%clk 0:00:05]} 74. Rxh5 {[%clk 0:00:05]}  Ke4 {[%clk 0:00:05]} 75. Ne7 {[%clk 0:00:03]}  Ra6 {[%clk 0:00:05]} 76. Rh4+ {[%clk 0:00:04]}  Ke5 {[%clk 0:00:05]} 77. Rh1 {[%clk 0:00:04]}  Ke4 {[%clk 0:00:05]} 78. Re1+ {[%clk 0:00:04]}  Kf4 {[%clk 0:00:06]} 79. Ng6+ {[%clk 0:00:05]}  Kg4 {[%clk 0:00:05]} 80. Ne5+ {[%clk 0:00:04]}  Kf5 {[%clk 0:00:05]} 81. Nc4 {[%clk 0:00:04]}  Ra7+ {[%clk 0:00:06]} 82. Ke8 {[%clk 0:00:05]}  Kf6 {[%clk 0:00:05]} 83. Nd6 {[%clk 0:00:04]}  Rh7 {[%clk 0:00:05]} 84. Kd8 {[%clk 0:00:04]}  Ra7 {[%clk 0:00:04]} 85. Nb5 {[%clk 0:00:04]}  Rh7 {[%clk 0:00:04]} 86. Nc7 {[%clk 0:00:05]}  Kf5 {[%clk 0:00:04]} 87. Nb5 {[%clk 0:00:03]}  Kf6 {[%clk 0:00:04]} 88. Nd6 {[%clk 0:00:03]}  Ra7 {[%clk 0:00:04]} 89. Kc8 {[%clk 0:00:04]}  Rh7 {[%clk 0:00:04]} 90. Ne8+ {[%clk 0:00:04]}  Kf5 {[%clk 0:00:04]} 91. Nc7 {[%clk 0:00:05]}  Kf6 {[%clk 0:00:04]} 92. Kb7 {[%clk 0:00:06]}  Kf5 {[%clk 0:00:04]} 93. Kc6 {[%clk 0:00:06]}  Kf4 {[%clk 0:00:04]} 94. Ne6+ {[%clk 0:00:06]}  Kf3 {[%clk 0:00:04]} 95. Ng5+ {[%clk 0:00:06]}  Kf2 {[%clk 0:00:05]} 96. Re8 {[%clk 0:00:07]}  Rh5 {[%clk 0:00:04]} 97. Ne6 {[%clk 0:00:07]}  Kf3 {[%clk 0:00:03]} 98. Kd6 {[%clk 0:00:07]}  Ra5 {[%clk 0:00:03]} 99. Nd4+ {[%clk 0:00:07]}  Kf4 {[%clk 0:00:03]} 100. Nb3 {[%clk 0:00:08]}  Rb5 {[%clk 0:00:04]} 101. Nc5 {[%clk 0:00:08]}  Ra5 {[%clk 0:00:04]} 102. Kd5 {[%clk 0:00:09]}  Kf3 {[%clk 0:00:04]} 103. Kd4 {[%clk 0:00:09]}  Ra7 {[%clk 0:00:04]} 104. Rf8+ {[%clk 0:00:09]}  Kg4 {[%clk 0:00:04]} 105. Ne4 {[%clk 0:00:09]}  Re7 {[%clk 0:00:04]} 106. Ke3 {[%clk 0:00:10]}  Kh5 {[%clk 0:00:04]} 107. Rg8 {[%clk 0:00:10]}  Kh6 {[%clk 0:00:04]} 108. Kf4 {[%clk 0:00:09]}  Rf7+ {[%clk 0:00:04]} 109. Ke5 {[%clk 0:00:10]}  Rg7 {[%clk 0:00:04]} 110. Ra8 {[%clk 0:00:09]}  Kg6 {[%clk 0:00:04]} 111. Ra6+ {[%clk 0:00:10]}  Kh5 {[%clk 0:00:04]} 112. Kf5 {[%clk 0:00:10]}  Rf7+ {[%clk 0:00:03]} 113. Nf6+ {[%clk 0:00:10]}  Kh6 {[%clk 0:00:04]} 114. Ra8 {[%clk 0:00:09]}  Rb7 {[%clk 0:00:02]} 115. Rh8+ {[%clk 0:00:10]}  Kg7 {[%clk 0:00:03]} 116. Rh7+ {[%clk 0:00:07]}  Kf8 {[%clk 0:00:03]} 117. Nd7+ {[%clk 0:00:07]}  Ke8 {[%clk 0:00:02]} 118. Ke6 {[%clk 0:00:07]}  Kd8 {[%clk 0:00:03]} 119. Kd6 {[%clk 0:00:08]}  Ke8 {[%clk 0:00:01]} 120. Ke6 {[%clk 0:00:05]}  Kd8 {[%clk 0:00:02]} 121. Kd6 {[%clk 0:00:05]}  Ke8 {[%clk 0:00:02]} 122. Kc6 {[%clk 0:00:06]}  Rb1 {[%clk 0:00:02]} 123. Ne5 {[%clk 0:00:06]}  Kf8 {[%clk 0:00:02]} 124. Kd6 {[%clk 0:00:07]} 1/2-1/2

[Event "December 5 Early 2023"]
[Site "https://www.chess.com"]
[Date "2023.12.05"]
[Round "7"]
[White "Henriquez Villagra, Cristobal"]
[Black "Naroditsky, Daniel"]
[Result "1-0"]
[Board "3"]
[TimeControl "180+1"]
[WhiteFideId "3409350"]
[BlackFideId "2026961"]
[WhiteElo "2970"]
[BlackElo "3175"]
[WhiteTeam "CHI"]
[BlackTeam "USA"]
[WhiteClock "0:00:12"]
[BlackClock "0:00:06"]

1. e4 {[%clk 0:03:00]}  c5 {[%clk 0:02:58]} 2. Nf3 {[%clk 0:03:00]}  d6 {[%clk 0:02:58]} 3. Bb5+ {[%clk 0:03:00]}  Bd7 {[%clk 0:02:54]} 4. Qe2 {[%clk 0:02:56]}  Nf6 {[%clk 0:02:38]} 5. O-O {[%clk 0:02:48]}  e6 {[%clk 0:02:14]} 6. Bxd7+ {[%clk 0:02:38]}  Qxd7 {[%clk 0:02:15]} 7. e5 {[%clk 0:02:34]}  dxe5 {[%clk 0:02:13]} 8. Nxe5 {[%clk 0:02:35]}  Qc7 {[%clk 0:02:13]} 9. Nc3 {[%clk 0:02:33]}  a6 {[%clk 0:02:13]} 10. h3 {[%clk 0:02:08]}  Nc6 {[%clk 0:01:44]} 11. Nxc6 {[%clk 0:02:07]}  Qxc6 {[%clk 0:01:45]} 12. b3 {[%clk 0:02:04]}  Be7 {[%clk 0:01:39]} 13. Bb2 {[%clk 0:02:04]}  Rd8 {[%clk 0:01:39]} 14. Rfe1 {[%clk 0:01:52]}  O-O {[%clk 0:01:37]} 15. d3 {[%clk 0:01:51]}  Rfe8 {[%clk 0:01:26]} 16. a4 {[%clk 0:01:43]}  b6 {[%clk 0:01:22]} 17. Ne4 {[%clk 0:01:36]}  Nxe4 {[%clk 0:01:10]} 18. Qxe4 {[%clk 0:01:36]}  Qxe4 {[%clk 0:00:35]} 19. Rxe4 {[%clk 0:01:37]}  Rd5 {[%clk 0:00:33]} 20. Rae1 {[%clk 0:01:34]}  Bf6 {[%clk 0:00:32]} 21. Bxf6 {[%clk 0:01:02]}  gxf6 {[%clk 0:00:33]} 22. Rg4+ {[%clk 0:01:02]}  Kf8 {[%clk 0:00:33]} 23. Rh4 {[%clk 0:01:02]}  Kg7 {[%clk 0:00:31]} 24. Re3 {[%clk 0:00:57]}  h5 {[%clk 0:00:29]} 25. Kf1 {[%clk 0:00:57]}  Rh8 {[%clk 0:00:23]} 26. Ke2 {[%clk 0:00:50]}  Rh6 {[%clk 0:00:23]} 27. g3 {[%clk 0:00:45]}  Rg6 {[%clk 0:00:22]} 28. b4 {[%clk 0:00:45]}  cxb4 {[%clk 0:00:13]} 29. Rxb4 {[%clk 0:00:46]}  b5 {[%clk 0:00:13]} 30. axb5 {[%clk 0:00:45]}  axb5 {[%clk 0:00:14]} 31. Ree4 {[%clk 0:00:13]}  Rgg5 {[%clk 0:00:12]} 32. Kd2 {[%clk 0:00:11]}  Rgf5 {[%clk 0:00:10]} 33. Rf4 {[%clk 0:00:12]}  Rfe5 {[%clk 0:00:09]} 34. Rf3 {[%clk 0:00:11]}  Rd6 {[%clk 0:00:07]} 35. Re3 {[%clk 0:00:06]}  Rf5 {[%clk 0:00:08]} 36. f4 {[%clk 0:00:06]}  Rc5 {[%clk 0:00:08]} 37. c3 {[%clk 0:00:05]}  Ra6 {[%clk 0:00:08]} 38. d4 {[%clk 0:00:06]}  Ra2+ {[%clk 0:00:07]} 39. Kd3 {[%clk 0:00:06]}  Rd5 {[%clk 0:00:07]} 40. Ke4 {[%clk 0:00:06]}  Rh2 {[%clk 0:00:05]} 41. g4 {[%clk 0:00:05]}  h4 {[%clk 0:00:05]} 42. f5 {[%clk 0:00:04]}  Rg2 {[%clk 0:00:03]} 43. fxe6 {[%clk 0:00:04]}  fxe6 {[%clk 0:00:04]} 44. Kf3 {[%clk 0:00:03]}  Rg3+ {[%clk 0:00:05]} 45. Kf2 {[%clk 0:00:04]}  Rxe3 {[%clk 0:00:05]} 46. Kxe3 {[%clk 0:00:05]}  Kg6 {[%clk 0:00:03]} 47. Ke4 {[%clk 0:00:04]}  Kg5 {[%clk 0:00:02]} 48. c4 {[%clk 0:00:05]}  bxc4 {[%clk 0:00:03]} 49. Rxc4 {[%clk 0:00:05]}  Kg6 {[%clk 0:00:02]} 50. Rc5 {[%clk 0:00:05]}  Rd8 {[%clk 0:00:02]} 51. Rh5 {[%clk 0:00:06]}  Rb8 {[%clk 0:00:02]} 52. Rxh4 {[%clk 0:00:05]}  Rb4 {[%clk 0:00:03]} 53. Kd3 {[%clk 0:00:04]}  Rb3+ {[%clk 0:00:02]} 54. Kc4 {[%clk 0:00:05]}  Rb1 {[%clk 0:00:02]} 55. Rh5 {[%clk 0:00:05]}  Rc1+ {[%clk 0:00:03]} 56. Kb5 {[%clk 0:00:06]}  Rc3 {[%clk 0:00:02]} 57. Kb6 {[%clk 0:00:06]}  Rc1 {[%clk 0:00:02]} 58. Kb5 {[%clk 0:00:07]}  Rc2 {[%clk 0:00:02]} 59. Kb6 {[%clk 0:00:08]}  Rc1 {[%clk 0:00:02]} 60. Rh8 {[%clk 0:00:08]}  Rc4 {[%clk 0:00:01]} 61. Rd8 {[%clk 0:00:06]}  Kg5 {[%clk 0:00:02]} 62. Kb5 {[%clk 0:00:07]}  Rc1 {[%clk 0:00:02]} 63. Re8 {[%clk 0:00:07]}  Re1 {[%clk 0:00:02]} 64. Kc5 {[%clk 0:00:07]}  Re4 {[%clk 0:00:02]} 65. Rh8 {[%clk 0:00:07]}  Kf4 {[%clk 0:00:01]} 66. Kd6 {[%clk 0:00:06]}  Ke3 {[%clk 0:00:02]} 67. Re8 {[%clk 0:00:06]}  Kxd4 {[%clk 0:00:01]} 68. Rxe6 {[%clk 0:00:06]}  Rf4 {[%clk 0:00:02]} 69. Ke7 {[%clk 0:00:07]}  Kd5 {[%clk 0:00:02]} 70. Rxf6 {[%clk 0:00:07]}  Ra4 {[%clk 0:00:02]} 71. Kf7 {[%clk 0:00:08]}  Ke5 {[%clk 0:00:02]} 72. Rf5+ {[%clk 0:00:08]}  Ke4 {[%clk 0:00:03]} 73. Kg6 {[%clk 0:00:08]}  Ra8 {[%clk 0:00:03]} 74. Kg5 {[%clk 0:00:08]}  Rg8+ {[%clk 0:00:04]} 75. Kh4 {[%clk 0:00:09]}  Rh8+ {[%clk 0:00:04]} 76. Kg3 {[%clk 0:00:10]}  Rg8 {[%clk 0:00:05]} 77. h4 {[%clk 0:00:10]}  Rh8 {[%clk 0:00:05]} 78. h5 {[%clk 0:00:10]}  Rg8 {[%clk 0:00:06]} 79. Kh4 {[%clk 0:00:11]}  Rf8 {[%clk 0:00:06]} 80. Rxf8 {[%clk 0:00:12]} 1-0

[Event "December 5 Early 2023"]
[Site "https://www.chess.com"]
[Date "2023.12.05"]
[Round "7"]
[White "Caruana, Fabiano"]
[Black "Kovalev, Vladislav"]
[Result "1/2-1/2"]
[Board "6"]
[TimeControl "180+1"]
[WhiteFideId "2020009"]
[BlackFideId "13504398"]
[WhiteElo "3078"]
[BlackElo "2915"]
[WhiteTeam "USA"]
[BlackTeam "FID"]
[WhiteClock "0:00:06"]
[BlackClock "0:00:05"]

1. e4 {[%clk 0:03:00]}  e5 {[%clk 0:02:58]} 2. Nf3 {[%clk 0:02:59]}  Nc6 {[%clk 0:02:59]} 3. Bb5 {[%clk 0:02:59]}  a6 {[%clk 0:03:00]} 4. Ba4 {[%clk 0:02:59]}  Nf6 {[%clk 0:03:00]} 5. O-O {[%clk 0:02:59]}  Be7 {[%clk 0:03:00]} 6. d3 {[%clk 0:02:58]}  b5 {[%clk 0:02:59]} 7. Bb3 {[%clk 0:02:59]}  O-O {[%clk 0:03:00]} 8. Nc3 {[%clk 0:02:59]}  d6 {[%clk 0:03:00]} 9. a3 {[%clk 0:02:59]}  Na5 {[%clk 0:02:56]} 10. Ba2 {[%clk 0:02:59]}  Be6 {[%clk 0:02:56]} 11. Bxe6 {[%clk 0:02:57]}  fxe6 {[%clk 0:02:57]} 12. b4 {[%clk 0:02:58]}  Nc6 {[%clk 0:02:57]} 13. Bd2 {[%clk 0:02:58]}  h6 {[%clk 0:02:45]} 14. Qe2 {[%clk 0:02:55]}  Nd4 {[%clk 0:02:38]} 15. Nxd4 {[%clk 0:02:54]}  exd4 {[%clk 0:02:39]} 16. Nd1 {[%clk 0:02:51]}  e5 {[%clk 0:02:36]} 17. f4 {[%clk 0:02:36]}  Qd7 {[%clk 0:02:32]} 18. Nf2 {[%clk 0:02:32]}  Qe6 {[%clk 0:02:23]} 19. Nh1 {[%clk 0:02:11]}  Qg4 {[%clk 0:02:00]} 20. Qe1 {[%clk 0:02:06]}  Nh5 {[%clk 0:01:51]} 21. f5 {[%clk 0:02:01]}  Nf6 {[%clk 0:01:34]} 22. Ng3 {[%clk 0:01:33]}  a5 {[%clk 0:01:32]} 23. bxa5 {[%clk 0:01:31]}  c5 {[%clk 0:01:32]} 24. Rf3 {[%clk 0:01:22]}  c4 {[%clk 0:01:29]} 25. Bb4 {[%clk 0:01:19]}  c3 {[%clk 0:01:27]} 26. h3 {[%clk 0:01:17]}  Qh4 {[%clk 0:01:26]} 27. Qb1 {[%clk 0:01:15]}  Qg5 {[%clk 0:01:10]} 28. Qb3+ {[%clk 0:01:14]}  Rf7 {[%clk 0:01:11]} 29. Raf1 {[%clk 0:01:11]}  Bf8 {[%clk 0:01:02]} 30. Nh1 {[%clk 0:00:44]}  d5 {[%clk 0:00:37]} 31. exd5 {[%clk 0:00:43]}  e4 {[%clk 0:00:33]} 32. dxe4 {[%clk 0:00:30]}  Nxe4 {[%clk 0:00:34]} 33. d6 {[%clk 0:00:29]}  Nd2 {[%clk 0:00:32]} 34. Qd5 {[%clk 0:00:29]}  Nxf3+ {[%clk 0:00:31]} 35. Rxf3 {[%clk 0:00:29]}  Rd8 {[%clk 0:00:29]} 36. Kh2 {[%clk 0:00:17]}  Qf6 {[%clk 0:00:26]} 37. d7 {[%clk 0:00:05]}  Rxd7 {[%clk 0:00:21]} 38. Qe6 {[%clk 0:00:05]}  Bd6+ {[%clk 0:00:13]} 39. Kg1 {[%clk 0:00:06]}  Qe5 {[%clk 0:00:07]} 40. Qxe5 {[%clk 0:00:05]}  Bxe5 {[%clk 0:00:08]} 41. Nf2 {[%clk 0:00:05]}  Ra7 {[%clk 0:00:06]} 42. Nd3 {[%clk 0:00:05]}  Bc7 {[%clk 0:00:07]} 43. Kf2 {[%clk 0:00:05]}  Bxa5 {[%clk 0:00:07]} 44. Rf4 {[%clk 0:00:04]}  Bxb4 {[%clk 0:00:06]} 45. axb4 {[%clk 0:00:05]}  Rfd7 {[%clk 0:00:06]} 46. Nc5 {[%clk 0:00:04]}  Rd6 {[%clk 0:00:05]} 47. Ke2 {[%clk 0:00:04]}  Ra1 {[%clk 0:00:05]} 48. Nb3 {[%clk 0:00:04]}  Rb1 {[%clk 0:00:02]} 49. Nxd4 {[%clk 0:00:04]}  Rxb4 {[%clk 0:00:02]} 50. Ke3 {[%clk 0:00:04]}  Rc4 {[%clk 0:00:01]} 51. Nxb5 {[%clk 0:00:04]}  Rxf4 {[%clk 0:00:02]} 52. Nxd6 {[%clk 0:00:04]}  Rb4 {[%clk 0:00:01]} 53. Ne4 {[%clk 0:00:04]}  Rb1 {[%clk 0:00:01]} 54. Nxc3 {[%clk 0:00:04]}  Rg1 {[%clk 0:00:02]} 55. g4 {[%clk 0:00:03]}  Rg2 {[%clk 0:00:01]} 56. Ne2 {[%clk 0:00:03]}  Rh2 {[%clk 0:00:01]} 57. c4 {[%clk 0:00:03]}  Rxh3+ {[%clk 0:00:02]} 58. Ke4 {[%clk 0:00:03]}  Kf7 {[%clk 0:00:02]} 59. c5 {[%clk 0:00:04]}  Ke7 {[%clk 0:00:03]} 60. Nf4 {[%clk 0:00:04]}  Ra3 {[%clk 0:00:02]} 61. Nh5 {[%clk 0:00:03]}  Kf7 {[%clk 0:00:02]} 62. c6 {[%clk 0:00:03]}  Rc3 {[%clk 0:00:02]} 63. Kd5 {[%clk 0:00:03]}  Rc1 {[%clk 0:00:02]} 64. Kd6 {[%clk 0:00:03]}  Rd1+ {[%clk 0:00:02]} 65. Kc7 {[%clk 0:00:04]}  Rd4 {[%clk 0:00:02]} 66. Kb8 {[%clk 0:00:03]}  Rxg4 {[%clk 0:00:03]} 67. c7 {[%clk 0:00:03]}  Rb4+ {[%clk 0:00:04]} 68. Ka7 {[%clk 0:00:04]}  Rc4 {[%clk 0:00:04]} 69. Kb7 {[%clk 0:00:04]}  Rxc7+ {[%clk 0:00:03]} 70. Kxc7 {[%clk 0:00:04]}  g6 {[%clk 0:00:04]} 71. fxg6+ {[%clk 0:00:05]}  Kxg6 {[%clk 0:00:05]} 72. Ng3 {[%clk 0:00:05]}  h5 {[%clk 0:00:05]} 73. Nxh5 {[%clk 0:00:06]} 1/2-1/2

[Event "December 5 Early 2023"]
[Site "https://www.chess.com"]
[Date "2023.12.05"]
[Round "7"]
[White "Oparin, Grigoriy"]
[Black "Rakhmanov, Aleksandr"]
[Result "1-0"]
[Board "9"]
[TimeControl "180+1"]
[WhiteFideId "24125890"]
[BlackFideId "4173708"]
[WhiteElo "3059"]
[BlackElo "2906"]
[WhiteTeam "USA"]
[BlackTeam "FID"]
[WhiteClock "0:00:15"]
[BlackClock "0:00:00"]

1. Nf3 {[%clk 0:03:00]}  d5 {[%clk 0:02:58]} 2. g3 {[%clk 0:03:01]}  g6 {[%clk 0:02:59]} 3. c4 {[%clk 0:03:00]}  c6 {[%clk 0:02:59]} 4. Qa4 {[%clk 0:02:56]}  Nd7 {[%clk 0:02:49]} 5. cxd5 {[%clk 0:02:56]}  Nb6 {[%clk 0:02:49]} 6. Qd4 {[%clk 0:02:54]}  Nf6 {[%clk 0:02:46]} 7. dxc6 {[%clk 0:02:53]}  Qc7 {[%clk 0:02:40]} 8. Nc3 {[%clk 0:02:48]}  bxc6 {[%clk 0:02:39]} 9. Bg2 {[%clk 0:02:48]}  Bg7 {[%clk 0:02:39]} 10. O-O {[%clk 0:02:47]}  O-O {[%clk 0:02:40]} 11. d3 {[%clk 0:02:46]}  Rd8 {[%clk 0:02:38]} 12. Qh4 {[%clk 0:02:47]}  h5 {[%clk 0:02:37]} 13. Bg5 {[%clk 0:02:43]}  Nbd5 {[%clk 0:02:33]} 14. Rac1 {[%clk 0:02:38]}  Qa5 {[%clk 0:02:28]} 15. Nd4 {[%clk 0:02:26]}  Bb7 {[%clk 0:02:17]} 16. Nb3 {[%clk 0:02:10]}  Qb6 {[%clk 0:02:13]} 17. Ne4 {[%clk 0:02:06]}  a5 {[%clk 0:02:10]} 18. Nbc5 {[%clk 0:02:04]}  a4 {[%clk 0:02:00]} 19. Rc2 {[%clk 0:01:50]}  Bc8 {[%clk 0:01:52]} 20. a3 {[%clk 0:01:43]}  Ra7 {[%clk 0:01:34]} 21. Rfc1 {[%clk 0:01:42]}  Ng4 {[%clk 0:01:26]} 22. h3 {[%clk 0:01:38]}  Nh6 {[%clk 0:01:17]} 23. g4 {[%clk 0:01:29]}  f5 {[%clk 0:00:48]} 24. Bxh6 {[%clk 0:00:48]}  Bxh6 {[%clk 0:00:45]} 25. g5 {[%clk 0:00:46]}  Bg7 {[%clk 0:00:24]} 26. Nd2 {[%clk 0:00:46]}  Qb8 {[%clk 0:00:11]} 27. e3 {[%clk 0:00:38]}  Kh7 {[%clk 0:00:10]} 28. Qc4 {[%clk 0:00:33]}  e5 {[%clk 0:00:07]} 29. Nxa4 {[%clk 0:00:30]}  Ba6 {[%clk 0:00:06]} 30. Qxc6 {[%clk 0:00:28]}  Bxd3 {[%clk 0:00:06]} 31. Bxd5 {[%clk 0:00:26]}  Bxc2 {[%clk 0:00:01]} 32. Rxc2 {[%clk 0:00:26]}  Rad7 {[%clk 0:00:01]} 33. Nc3 {[%clk 0:00:25]}  e4 {[%clk 0:00:01]} 34. Ndb1 {[%clk 0:00:21]}  Bxc3 {[%clk 0:00:01]} 35. Nxc3 {[%clk 0:00:21]}  f4 {[%clk 0:00:01]} 36. Bxe4 {[%clk 0:00:18]}  Rd6 {[%clk 0:00:02]} 37. Qc5 {[%clk 0:00:17]}  fxe3 {[%clk 0:00:02]} 38. Qxe3 {[%clk 0:00:18]}  Re6 {[%clk 0:00:01]} 39. Kg2 {[%clk 0:00:19]}  Qe5 {[%clk 0:00:01]} 40. h4 {[%clk 0:00:18]}  Rf8 {[%clk 0:00:02]} 41. Re2 {[%clk 0:00:18]}  Kg7 {[%clk 0:00:01]} 42. f3 {[%clk 0:00:18]}  Rf4 {[%clk 0:00:02]} 43. Nd5 {[%clk 0:00:17]}  Rxh4 {[%clk 0:00:02]} 44. Qa7+ {[%clk 0:00:17]}  Kh8 {[%clk 0:00:00]} 45. Qe3 {[%clk 0:00:15]} 1-0

[Event "December 5 Early 2023"]
[Site "https://www.chess.com"]
[Date "2023.12.05"]
[Round "7"]
[White "Kuzubov, Yuriy"]
[Black "Matlakov, Maxim"]
[Result "0-1"]
[Board "12"]
[TimeControl "180+1"]
[WhiteFideId "14112906"]
[BlackFideId "4168003"]
[WhiteElo "2869"]
[BlackElo "2990"]
[WhiteTeam "UKR"]
[BlackTeam "RUS"]
[WhiteClock "0:00:07"]
[BlackClock "0:00:14"]

1. d4 {[%clk 0:03:00]}  Nf6 {[%clk 0:03:00]} 2. Nf3 {[%clk 0:03:01]}  e6 {[%clk 0:02:59]} 3. c4 {[%clk 0:03:01]}  b6 {[%clk 0:02:59]} 4. g3 {[%clk 0:03:01]}  Ba6 {[%clk 0:02:57]} 5. Qc2 {[%clk 0:03:01]}  c5 {[%clk 0:02:56]} 6. d5 {[%clk 0:03:01]}  exd5 {[%clk 0:02:54]} 7. cxd5 {[%clk 0:03:02]}  Bb7 {[%clk 0:02:54]} 8. Bg2 {[%clk 0:03:02]}  Nxd5 {[%clk 0:02:53]} 9. O-O {[%clk 0:03:02]}  Nc6 {[%clk 0:02:53]} 10. Rd1 {[%clk 0:02:59]}  Be7 {[%clk 0:02:51]} 11. a3 {[%clk 0:02:59]}  Nf6 {[%clk 0:02:45]} 12. e4 {[%clk 0:02:59]}  O-O {[%clk 0:02:30]} 13. e5 {[%clk 0:02:59]}  Ne8 {[%clk 0:02:30]} 14. Nc3 {[%clk 0:02:52]}  Nc7 {[%clk 0:02:27]} 15. h4 {[%clk 0:02:51]}  Ne6 {[%clk 0:02:26]} 16. Be3 {[%clk 0:02:25]}  Re8 {[%clk 0:02:16]} 17. h5 {[%clk 0:02:21]}  h6 {[%clk 0:02:15]} 18. Qf5 {[%clk 0:02:16]}  Bf8 {[%clk 0:02:11]} 19. Ne4 {[%clk 0:01:56]}  Ne7 {[%clk 0:01:23]} 20. Qg4 {[%clk 0:01:46]}  Bxe4 {[%clk 0:01:17]} 21. Qxe4 {[%clk 0:01:47]}  Nc6 {[%clk 0:01:17]} 22. Qf5 {[%clk 0:01:42]}  Qc7 {[%clk 0:01:16]} 23. Qg4 {[%clk 0:01:28]}  Rad8 {[%clk 0:01:11]} 24. Rd5 {[%clk 0:01:26]}  d6 {[%clk 0:00:55]} 25. exd6 {[%clk 0:01:25]}  Rxd6 {[%clk 0:00:54]} 26. Rxd6 {[%clk 0:01:18]}  Qxd6 {[%clk 0:00:55]} 27. Bxh6 {[%clk 0:01:15]}  Ncd4 {[%clk 0:00:51]} 28. Nh4 {[%clk 0:00:57]}  Qe5 {[%clk 0:00:47]} 29. Bd2 {[%clk 0:00:49]}  Ne2+ {[%clk 0:00:40]} 30. Kh2 {[%clk 0:00:40]}  Qxb2 {[%clk 0:00:40]} 31. Re1 {[%clk 0:00:35]}  Qxd2 {[%clk 0:00:27]} 32. Rxe2 {[%clk 0:00:35]}  Qd4 {[%clk 0:00:27]} 33. Be4 {[%clk 0:00:30]}  Qf6 {[%clk 0:00:26]} 34. Kg2 {[%clk 0:00:19]}  c4 {[%clk 0:00:25]} 35. Bc2 {[%clk 0:00:17]}  c3 {[%clk 0:00:16]} 36. Qe4 {[%clk 0:00:16]}  Nf4+ {[%clk 0:00:16]} 37. Qxf4 {[%clk 0:00:13]}  Rxe2 {[%clk 0:00:16]} 38. Qb4 {[%clk 0:00:07]}  Qxf2+ {[%clk 0:00:14]} 0-1